bitfinex/quotes_BTCUSD_20240723
["timestamp","ask_amount","ask_price","bid_price","bid_amount"]
[1721752415234,0.02071082,66370.0,66369.0,0.29769191]
[1721752415393,0.02071082,66370.0,66369.0,0.59903691]
[1721752416588,0.02071082,66371.0,66370.0,0.75335]
[1721752416797,0.02155082,66373.0,66372.0,0.150665]
[1721752417005,0.00084,66373.0,66372.0,0.90034691]
[1721752417200,0.02155082,66373.0,66372.0,1.03253337]
[1721752417915,0.02155082,66373.0,66372.0,1.03253337]
[1721752419678,0.00084,66373.0,66372.0,1.03253337]
[1721752420060,0.00084,66373.0,66372.0,1.33386437]
[1721752421775,0.00084,66373.0,66372.0,1.03253337]
[1721752422670,0.00084,66373.0,66372.0,1.14433337]
[1721752422886,0.00084,66373.0,66372.0,1.44566437]
[1721752425003,0.00084,66373.0,66372.0,1.39566437]
[1721752425165,0.00084,66373.0,66372.0,1.03253337]
[1721752425689,0.00084,66373.0,66372.0,1.33386437]
[1721752426829,0.00084,66373.0,66372.0,1.38386437]
[1721752427832,0.00084,66373.0,66372.0,2.58519537]
[1721752428007,0.00084,66373.0,66372.0,1.43386437]
[1721752428430,0.00084,66373.0,66372.0,1.38386437]
[1721752429030,0.00084,66373.0,66372.0,1.43386437]
[1721752429230,0.00084,66373.0,66372.0,1.38386437]
[1721752429479,0.00084,66373.0,66372.0,1.43386437]
[1721752430457,0.00084,66373.0,66372.0,1.38386437]
[1721752431012,0.00084,66373.0,66372.0,1.39297439]
[1721752431487,0.00084,66373.0,66372.0,1.44297439]
[1721752431692,0.00084,66373.0,66372.0,1.39297439]
[1721752431867,0.00084,66373.0,66372.0,1.44297439]
[1721752432067,0.00084,66373.0,66372.0,2.62430539]
[1721752432228,0.00084,66373.0,66372.0,2.65359457]
[1721752432821,0.00084,66373.0,66372.0,3.17372557]
[1721752432948,0.07348942,66392.0,66389.0,1.054389]
[1721752433160,0.08197942,66399.0,66389.0,1.40227361]
[1721752433161,0.02071082,66394.0,66389.0,1.40227361]
[1721752433522,0.02071082,66393.0,66389.0,1.40227361]
[1721752433639,0.02071082,66398.0,66389.0,1.40227361]
[1721752433839,0.08197942,66399.0,66389.0,1.83412761]
[1721752434275,0.08197942,66399.0,66389.0,1.88412761]
[1721752434652,0.08197942,66399.0,66389.0,1.83412761]
[1721752434975,0.08197942,66399.0,66389.0,1.88412761]
[1721752435380,0.00849,66399.0,66389.0,3.21538161]
[1721752435582,0.00849,66399.0,66389.0,2.08412761]
[1721752435960,0.00849,66399.0,66389.0,2.41467079]
[1721752436377,0.00849,66399.0,66389.0,2.57317079]
[1721752437024,0.00849,66399.0,66398.0,0.12928918]
[1721752437185,0.00849,66399.0,66398.0,3.92710709]
[1721752437382,0.00849,66399.0,66398.0,3.62589409]
[1721752437626,0.00849,66399.0,66398.0,4.06979191]
[1721752438170,0.00849,66399.0,66398.0,4.37100491]
[1721752438385,0.00849,66399.0,66398.0,4.45156595]
[1721752438585,0.00849,66399.0,66398.0,4.50156595]
[1721752439012,0.00849,66399.0,66398.0,4.53085513]
[1721752439611,0.00849,66399.0,66398.0,4.68935513]
[1721752439773,0.00849,66399.0,66398.0,5.44935513]
[1721752440875,0.00849,66399.0,66398.0,5.45848731]
[1721752441848,0.00849,66399.0,66398.0,5.27069813]
[1721752442264,0.00849,66399.0,66398.0,5.29998731]
[1721752442913,0.00849,66399.0,66398.0,4.53998731]
[1721752443069,0.00849,66399.0,66398.0,5.49848731]
[1721752443445,0.00849,66399.0,66398.0,5.88290031]
[1721752443615,0.01049,66409.0,66408.0,1.68454518]
[1721752443823,0.01049,66409.0,66408.0,2.75656509]
[1721752444244,0.01049,66409.0,66408.0,2.72727591]
[1721752444575,0.01049,66409.0,66408.0,1.96727591]
[1721752444747,0.01049,66409.0,66408.0,0.59877191]
[1721752444949,0.01049,66409.0,66408.0,0.6851491]
[1721752445083,0.01049,66409.0,66408.0,1.2874851]
[1721752445715,0.01049,66409.0,66408.0,1.29644018]
[1721752447181,0.03120082,66409.0,66408.0,0.99527218]
[1721752447378,0.03120082,66409.0,66400.0,0.2]
[1721752447379,0.02071082,66400.0,66398.0,1.29906104]
[1721752447584,0.47252382,66399.0,66398.0,0.8415]
[1721752447787,0.02071082,66393.0,66392.0,0.372]
[1721752447993,0.25242882,66393.0,66392.0,0.372]
[1721752448205,0.55366482,66393.0,66392.0,0.372]
[1721752448753,0.02071082,66381.0,66380.0,1.3556]
[1721752448978,0.02071082,66381.0,66380.0,1.50256265]
[1721752449540,0.02071082,66381.0,66380.0,1.65320965]
[1721752449789,0.02071082,66382.0,66381.0,0.150645]
[1721752450380,0.02071082,66382.0,66381.0,0.753227]
[1721752450575,0.02071082,66382.0,66381.0,0.90018965]
[1721752450803,0.02071082,66386.0,66381.0,0.29398256]
[1721752451000,0.02071082,66386.0,66385.0,0.150636]
[1721752451174,0.02071082,66386.0,66385.0,0.74589056]
[1721752451358,0.02071082,66386.0,66385.0,1.04716256]
[1721752451576,0.02071082,66389.0,66385.0,0.29398256]
[1721752451770,0.002794,66392.0,66380.0,0.5141]
[1721752451771,0.02071082,66396.0,66386.0,0.14701991]
[1721752451955,0.0799,66399.0,66398.0,0.301213]
[1721752452205,0.02071082,66404.0,66403.0,0.451786]
[1721752452409,0.02071082,66404.0,66403.0,0.14701991]
[1721752452611,0.02071082,66400.0,66399.0,0.4819323]
[1721752452817,0.02071082,66400.0,66399.0,0.1807253]
[1721752453079,0.02071082,66400.0,66399.0,0.150604]
[1721752453276,0.02071082,66400.0,66399.0,0.451813]
[1721752454111,0.02071082,66396.0,66395.0,0.451837]
[1721752454314,0.02071082,66394.0,66393.0,0.150618]
[1721752454923,0.0765,66395.0,66394.0,0.150616]
[1721752455069,0.0765,66395.0,66394.0,0.4669098]
[1721752455264,0.02071082,66400.0,66395.0,0.301227]
[1721752455508,0.002794,66399.0,66398.0,0.150606]
[1721752455668,0.002794,66399.0,66398.0,0.451819]
[1721752455884,0.02350482,66399.0,66398.0,0.150606]
[1721752456083,0.02071082,66399.0,66398.0,0.09614666]
[1721752456785,0.17131482,66399.0,66398.0,0.09614666]
[1721752457013,0.02071082,66397.0,66396.0,0.29763091]
[1721752457216,0.02071082,66397.0,66396.0,0.38857312]
[1721752457426,0.02071082,66397.0,66396.0,0.68979512]
[1721752457618,0.02071082,66397.0,66396.0,0.38857312]
[1721752458225,0.2271,66401.0,66381.0,0.351288]
[1721752458226,0.02071082,66386.0,66385.0,0.451908]
[1721752458565,0.02071082,66386.0,66385.0,0.90019991]
[1721752458713,0.377701,66401.0,66385.0,0.90019991]
[1721752458714,0.02071082,66389.0,66385.0,0.14701991]
[1721752458873,0.02071082,66391.0,66390.0,0.150625]
[1721752459074,0.02071082,66387.0,66386.0,0.77287199]
[1721752459381,0.02071082,66387.0,66386.0,0.6186239]
[1721752459579,0.02071082,66387.0,66386.0,0.9198919]
[1721752460015,0.02071082,66385.0,66384.0,0.451914]
[1721752460220,0.02071082,66385.0,66384.0,0.90021091]
[1721752460416,0.02071082,66393.0,66384.0,0.44829591]
[1721752460618,0.02071082,66400.0,66391.0,0.0657]
[1721752460828,0.02071082,66400.0,66392.0,0.36201991]
[1721752461034,0.02071082,66400.0,66399.0,0.150604]
[1721752461241,0.02071082,66402.0,66401.0,0.4518]
[1721752461441,0.02071082,66402.0,66401.0,0.6888228]
[1721752461642,0.02071082,66402.0,66401.0,0.09000289]
[1721752461901,0.02071082,66400.0,66399.0,0.150603]
[1721752462064,0.02071082,66400.0,66399.0,0.29762291]
[1721752462681,0.02071082,66400.0,66399.0,0.59883191]
[1721752463251,0.02071082,66402.0,66401.0,0.1506]
[1721752463455,0.02071082,66402.0,66401.0,0.51260285]
[1721752465308,0.02071082,66407.0,66405.0,0.301182]
[1721752465492,0.02071082,66407.0,66406.0,0.451765]
[1721752465668,0.02071082,66407.0,66406.0,0.51772378]
[1721752465876,0.02071082,66407.0,66406.0,0.06595878]
[1721752466127,0.02071082,66404.0,66403.0,0.451785]
[1721752466444,0.02071082,66404.0,66403.0,0.59880491]
[1721752466647,0.02071082,66404.0,66389.0,0.05]
[1721752466648,0.02071082,66400.0,66399.0,0.301208]
[1721752466786,0.02071082,66400.0,66399.0,0.62768992]
[1721752466987,0.02071082,66400.0,66386.0,0.0657]
[1721752467236,0.02071082,66388.0,66387.0,0.59891391]
[1721752467431,0.02071082,66388.0,66387.0,0.9600683]
[1721752467877,0.02071082,66391.0,66390.0,0.150623]
[1721752468075,0.02071082,66391.0,66390.0,0.29764291]
[1721752468275,0.02071082,66391.0,66390.0,0.59889291]
[1721752468500,0.02071082,66388.0,66386.0,0.301265]
[1721752468678,0.02071082,66387.0,66386.0,0.29765391]
[1721752468878,0.02071082,66387.0,66386.0,0.14701991]
[1721752469095,0.02071082,66387.0,66386.0,0.29765391]
[1721752469348,0.02071082,66387.0,66386.0,0.59892191]
[1721752469557,0.02071082,66379.0,66378.0,0.150651]
[1721752469768,0.02071082,66379.0,66378.0,0.59897491]
[1721752470276,0.17136482,66377.0,66376.0,1.2496]
[1721752470482,0.47268782,66375.0,66374.0,0.372]
[1721752470682,0.17136982,66375.0,66374.0,0.372]
[1721752470897,0.47268782,66375.0,66374.0,0.372]
[1721752471619,0.47268782,66375.0,66374.0,0.4242671]
[1721752471962,0.47268782,66375.0,66374.0,0.372]
[1721752472525,1.07532382,66375.0,66374.0,0.372]
[1721752472720,0.17139882,66362.0,66356.0,0.00924747]
[1721752472925,0.0629,66365.0,66356.0,0.00924747]
[1721752472926,0.02071082,66357.0,66356.0,0.992202]
[1721752473130,0.150686,66363.0,66357.0,0.1507]
[1721752473131,0.02071082,66358.0,66357.0,0.1507]
[1721752473338,0.02071082,66355.0,66354.0,0.00925749]
[1721752473541,0.02071082,66355.0,66354.0,0.59913891]
[1721752474195,0.02071082,66358.0,66357.0,0.1507]
[1721752474395,0.02071082,66358.0,66357.0,0.4521]
[1721752475197,0.002794,66364.0,66357.0,0.14701991]
[1721752475394,0.02350482,66366.0,66365.0,0.150681]
[1721752475720,0.02071082,66366.0,66365.0,0.452044]
[1721752476299,0.02071082,66366.0,66365.0,0.150681]
[1721752476464,0.02071082,66361.0,66360.0,0.301386]
[1721752476671,0.02071082,66361.0,66360.0,0.9467957]
[1721752477110,0.02071082,66361.0,66360.0,0.19700379]
[1721752477304,0.02071082,66359.0,66358.0,0.16539899]
[1721752477628,0.02071082,66359.0,66358.0,0.01470199]
[1721752477804,0.02071082,66356.0,66355.0,0.150703]
[1721752478009,0.02071082,66357.0,66356.0,0.150702]
[1721752478336,0.02071082,66361.0,66360.0,0.150693]
[1721752478507,0.02071082,66361.0,66360.0,0.452079]
[1721752478731,0.02071082,66361.0,66360.0,0.24683453]
[1721752479136,0.02071082,66361.0,66360.0,0.09614153]
[1721752479457,0.02071082,66361.0,66360.0,0.54822053]
[1721752479663,0.02071082,66361.0,66360.0,0.24683453]
[1721752479876,0.02071082,66361.0,66360.0,0.09614153]
[1721752480248,0.02071082,66361.0,66360.0,0.150693]
[1721752480452,0.02071082,66361.0,66360.0,0.452079]
[1721752480830,0.02071082,66361.0,66360.0,0.753465]
[1721752482162,0.02071082,66361.0,66360.0,0.150693]
[1721752482363,0.02071082,66361.0,66360.0,0.452079]
[1721752482618,0.002794,66367.0,66356.0,0.59912591]
[1721752482619,0.02071082,66357.0,66356.0,0.59912591]
[1721752483147,0.02071082,66357.0,66356.0,1.70145464]
[1721752484080,0.02071082,66357.0,66356.0,1.40005064]
[1721752486288,0.02071082,66357.0,66356.0,1.70145464]
[1721752486404,0.02071082,66360.0,66357.0,0.3014]
[1721752486599,0.02071082,66360.0,66359.0,0.452085]
[1721752486844,0.02071082,66360.0,66359.0,0.150695]
[1721752487048,0.002794,66365.0,66359.0,0.150695]
[1721752487049,0.02071082,66364.0,66363.0,0.150686]
[1721752487286,0.37479742,66378.0,66369.0,0.452017]
[1721752487287,0.002794,66370.0,66369.0,0.452017]
[1721752487514,0.02071082,66370.0,66369.0,0.14701991]
[1721752487666,0.02071082,66370.0,66369.0,0.29769191]
[1721752488021,0.02071082,66370.0,66369.0,0.59903691]
[1721752488229,0.02071082,66370.0,66369.0,0.9602859]
[1721752489028,0.02071082,66371.0,66370.0,0.75335]
[1721752489238,0.02071082,66371.0,66370.0,0.90036991]
[1721752489430,0.38086,66388.0,66370.0,0.90036991]
[1721752489431,0.02071082,66381.0,66380.0,0.451942]
[1721752489672,0.067094,66387.0,66381.0,0.451936]
[1721752489673,0.02071082,66382.0,66381.0,0.451936]
[1721752489878,0.02350482,66386.0,66385.0,0.451908]
[1721752490061,0.02071082,66388.0,66387.0,0.150631]
[1721752490230,0.02071082,66388.0,66387.0,0.753157]
[1721752490454,0.02071082,66388.0,66381.0,0.05989559]
[1721752490649,0.0796,66394.0,66381.0,0.753227]
[1721752490650,0.02071082,66382.0,66381.0,0.753227]
[1721752491959,0.02071082,66385.0,66383.0,0.602562]
[1721752492196,0.02071082,66385.0,66384.0,0.90021191]
[1721752492431,0.02071082,66385.0,66384.0,0.753192]
[1721752492579,0.02071082,66385.0,66384.0,1.054469]
[1721752492782,0.02071082,66386.0,66385.0,0.75318]
[1721752493206,0.02071082,66373.0,66370.0,0.15782739]
[1721752493415,0.02071082,66364.0,66362.0,1.3556]
[1721752493624,0.02071082,66368.0,66367.0,0.452031]
[1721752493801,0.02071082,66368.0,66367.0,0.753385]
[1721752493985,0.02071082,66368.0,66367.0,0.452031]
[1721752494186,0.02071082,66365.0,66364.0,0.602734]
[1721752494410,0.02071082,66365.0,66364.0,0.753418]
[1721752495352,0.02071082,66365.0,66364.0,1.054786]
[1721752495572,0.02071082,66366.0,66365.0,0.753407]
[1721752495920,0.02071082,66363.0,66362.0,1.66617495]
[1721752496115,0.02071082,66363.0,66362.0,1.506288]
[1721752496339,0.02071082,66363.0,66362.0,2.109042]
[1721752496766,0.02071082,66363.0,66362.0,0.150688]
[1721752497074,0.02071082,66363.0,66362.0,0.452065]
[1721752497563,0.02071082,66361.0,66360.0,0.372]
[1721752498121,0.02071082,66361.0,66359.0,0.150694]
[1721752498280,0.02071082,66360.0,66359.0,0.150694]
[1721752499340,0.02071082,66362.0,66361.0,0.15069]
[1721752499516,0.02071082,66361.0,66360.0,0.150692]
[1721752500093,0.02071082,66361.0,66360.0,0.452078]
[1721752500234,0.02071082,66364.0,66363.0,0.452058]
[1721752500413,0.02071082,66361.0,66355.0,0.00895788]
[1721752500638,0.02071082,66356.0,66355.0,0.150704]
[1721752500948,0.02071082,66356.0,66355.0,0.452113]
[1721752501172,0.02071082,66357.0,66356.0,0.150702]
[1721752501346,0.02071082,66357.0,66356.0,0.452106]
[1721752501546,0.02071082,66359.0,66358.0,0.150697]
[1721752501749,0.02071082,66360.0,66359.0,0.452085]
[1721752502098,0.02071082,66361.0,66360.0,0.753465]
[1721752502472,0.02071082,66361.0,66360.0,1.054851]
[1721752502695,0.02071082,66363.0,66362.0,0.150688]
[1721752502897,0.02071082,66367.0,66366.0,0.753397]
[1721752503123,0.02071082,66367.0,66366.0,0.452038]
[1721752503917,0.02071082,66367.0,66366.0,0.5273787]
[1721752504310,0.02071082,66370.0,66369.0,0.452017]
[1721752504514,0.085394,66377.0,66369.0,0.452017]
[1721752504515,0.02071082,66371.0,66370.0,0.75335]
[1721752504739,0.02071082,66371.0,66370.0,1.00434097]
[1721752504976,0.10331082,66377.0,66370.0,1.30568097]
[1721752505146,0.02071082,66377.0,66376.0,0.753282]
[1721752505306,0.02071082,66377.0,66376.0,0.150656]
[1721752505500,0.02071082,66377.0,66375.0,0.150658]
[1721752505703,0.07348942,66378.0,66373.0,0.451987]
[1721752505704,0.02071082,66374.0,66373.0,0.451987]
[1721752505942,0.02071082,66374.0,66373.0,0.8537457]
[1721752506134,0.02071082,66374.0,66373.0,1.00076561]
[1721752506356,0.02071082,66374.0,66373.0,1.30209261]
[1721752507213,0.02071082,66375.0,66374.0,1.054627]
[1721752507471,0.02071082,66375.0,66374.0,1.34225188]
[1721752507685,0.02071082,66375.0,66374.0,1.04092988]
[1721752508770,0.09420024,66378.0,66377.0,0.150654]
[1721752508971,0.09420024,66378.0,66377.0,0.82723119]
[1721752509639,0.02071082,66381.0,66380.0,1.054532]
[1721752509843,0.02071082,66385.0,66384.0,0.451915]
[1721752510067,0.02071082,66395.0,66391.0,0.301245]
[1721752510272,0.09504024,66399.0,66398.0,0.150606]
[1721752510672,0.09504024,66399.0,66398.0,0.451819]
[1721752510875,0.07432942,66399.0,66398.0,0.8283364]
[1721752511076,0.00084,66399.0,66398.0,0.97535631]
[1721752511281,0.00084,66399.0,66398.0,1.27656931]
[1721752511677,0.00084,66399.0,66398.0,1.84288231]
[1721752512099,0.00084,66399.0,66398.0,1.89288231]
[1721752512319,0.00084,66399.0,66398.0,2.81627149]
[1721752512503,0.00084,66399.0,66398.0,1.95698231]
[1721752512729,0.00084,66399.0,66398.0,1.90698231]
[1721752512926,0.00084,66399.0,66398.0,1.85698231]
[1721752513134,0.00084,66399.0,66398.0,2.06548231]
[1721752513331,0.00084,66399.0,66398.0,2.25819531]
[1721752513560,0.00084,66399.0,66398.0,1.91614449]
[1721752514549,0.00084,66399.0,66398.0,1.99543367]
[1721752514745,0.00084,66399.0,66398.0,1.91614449]
[1721752514954,0.00084,66399.0,66398.0,1.99543367]
[1721752515357,0.00084,66399.0,66398.0,1.91614449]
[1721752515570,0.00084,66399.0,66398.0,1.86614449]
[1721752515761,0.00084,66399.0,66398.0,1.91614449]
[1721752516038,0.00084,66399.0,66398.0,1.56493149]
[1721752516479,0.00084,66399.0,66398.0,1.56455844]
[1721752516688,0.00084,66399.0,66398.0,1.86577144]
[1721752516894,0.00084,66399.0,66398.0,1.99506062]
[1721752517327,0.00084,66399.0,66398.0,1.91577144]
[1721752517536,0.00084,66399.0,66398.0,1.99506062]
[1721752517743,0.00084,66399.0,66398.0,1.91577144]
[1721752517920,0.00084,66399.0,66398.0,1.86577144]
[1721752518133,0.00084,66399.0,66398.0,1.91577144]
[1721752518298,0.00084,66399.0,66398.0,1.86577144]
[1721752518520,0.00084,66399.0,66398.0,1.56455844]
[1721752519355,0.00084,66399.0,66398.0,1.21005404]
[1721752519562,0.00084,66399.0,66398.0,0.89967886]
[1721752519719,0.02155082,66399.0,66398.0,0.89967886]
[1721752519921,0.02071082,66398.0,66397.0,1.3556]
[1721752520196,0.09420024,66398.0,66397.0,1.506209]
[1721752520598,0.09420024,66398.0,66397.0,1.3556]
[1721752520962,0.38410624,66398.0,66397.0,1.3556]
[1721752521163,0.02071082,66391.0,66390.0,0.372]
[1721752521365,0.09420024,66391.0,66390.0,0.66964491]
[1721752521576,0.09420024,66391.0,66390.0,1.0378594]
[1721752521801,0.07348942,66391.0,66390.0,1.6403594]
[1721752522200,0.07348942,66398.0,66397.0,0.753045]
[1721752522494,0.07348942,66398.0,66397.0,1.20128291]
[1721752522762,0.00084,66399.0,66398.0,1.104245]
[1721752522981,0.00084,66399.0,66398.0,2.12126491]
[1721752523198,0.00084,66399.0,66398.0,1.25126491]
[1721752523897,0.00084,66399.0,66398.0,1.63176709]
[1721752524148,0.00084,66399.0,66398.0,1.77872974]
[1721752524378,0.00084,66399.0,66398.0,2.48872974]
[1721752524836,0.00084,66399.0,66398.0,2.40944056]
[1721752525346,0.00084,66399.0,66398.0,2.35944056]
[1721752525574,0.02155082,66399.0,66398.0,1.34822756]
[1721752525807,0.02155082,66399.0,66398.0,0.59883891]
[1721752526033,0.07348942,66399.0,66398.0,0.44823291]
[1721752526261,0.07348942,66399.0,66398.0,0.90005191]
[1721752528434,0.07348942,66399.0,66398.0,1.20126491]
[1721752528666,0.07348942,66399.0,66398.0,1.04701456]
[1721752528879,0.07348942,66399.0,66398.0,1.34822756]
[1721752529578,0.07348942,66399.0,66398.0,1.04701456]
[1721752529706,0.07348942,66399.0,66398.0,0.90005191]
[1721752530357,0.07348942,66399.0,66385.0,0.1]
[1721752530358,0.13588942,66399.0,66383.0,0.4094]
[1721752530628,0.07348942,66391.0,66390.0,1.483125]
[1721752531115,0.07348942,66391.0,66388.0,0.00923946]
[1721752531382,0.22411142,66391.0,66390.0,0.002794]
[1721752531595,0.150634,66386.0,66385.0,1.3556]
[1721752531834,0.451902,66386.0,66385.0,1.3556]
[1721752532063,0.451902,66386.0,66385.0,1.2496]
[1721752532291,0.13458942,66391.0,66377.0,0.00917938]
[1721752532534,0.07348942,66378.0,66377.0,0.150654]
[1721752533038,0.07208942,66378.0,66377.0,0.150654]
[1721752533519,0.150639,66384.0,66379.0,0.150647]
[1721752533736,0.07348942,66383.0,66380.0,0.150647]
[1721752533940,0.22413042,66383.0,66379.0,0.16682425]
[1721752534341,0.150643,66382.0,66379.0,0.01617525]
[1721752534536,0.226946,66381.0,66369.0,0.301342]
[1721752534738,0.0763,66381.0,66379.0,0.150649]
[1721752534998,0.226946,66381.0,66377.0,0.150653]
[1721752535226,0.0763,66381.0,66378.0,0.150651]
[1721752535654,0.324251,66390.0,66371.0,0.05913085]
[1721752535655,0.0611,66391.0,66379.0,0.14701991]
[1721752535855,0.0652,66399.0,66398.0,0.150606]
[1721752536067,0.15058,66410.0,66399.0,0.301208]
[1721752536308,0.1421,66411.0,66400.0,0.14701991]
[1721752536528,0.1421,66411.0,66408.0,0.150584]
[1721752536732,0.1421,66411.0,66400.0,0.14701991]
[1721752537062,0.1421,66411.0,66406.0,0.301175]
[1721752537260,0.0652,66411.0,66406.0,0.44819591]
[1721752537437,0.0652,66411.0,66410.0,0.451738]
[1721752537591,0.159058,66415.0,66410.0,0.150579]
[1721752537776,0.00849,66415.0,66406.0,0.14701991]
[1721752537987,0.07348942,66409.0,66406.0,0.29760791]
[1721752538442,0.07348942,66409.0,66405.0,0.15059]
[1721752538443,0.22407142,66409.0,66405.0,0.15059]
[1721752538646,0.07348942,66409.0,66404.0,0.301183]
[1721752538856,0.07348942,66409.0,66405.0,0.150589]
[1721752539026,0.07348942,66409.0,66406.0,0.150588]
[1721752539225,0.00849,66415.0,66407.0,0.0752965]
[1721752539226,0.159058,66415.0,66407.0,0.0752965]
[1721752539429,0.00849,66415.0,66408.0,0.14701991]
[1721752539655,0.00849,66415.0,66414.0,0.15057]
[1721752539857,0.00849,66415.0,66413.0,0.150572]
[1721752540057,0.00849,66415.0,66414.0,0.15057]
[1721752540232,0.00849,66415.0,66413.0,0.150572]
[1721752540724,0.00849,66415.0,66412.0,0.301149]
[1721752540927,0.00849,66415.0,66412.0,0.44816891]
[1721752541142,0.00849,66415.0,66414.0,0.451711]
[1721752541341,0.00849,66415.0,66414.0,0.15057]
[1721752541753,0.00849,66415.0,66414.0,0.45133831]
[1721752542445,0.00849,66415.0,66414.0,0.15057]
[1721752542646,0.00849,66415.0,66414.0,0.59873091]
[1721752542871,0.00849,66415.0,66414.0,1.27959209]
[1721752544706,0.00849,66415.0,66414.0,2.33073309]
[1721752544923,0.00849,66437.0,66428.0,0.0765]
[1721752545159,0.00849,66437.0,66436.0,1.530843]
[1721752545379,0.00849,66437.0,66436.0,1.688743]
[1721752545634,0.00849,66437.0,66436.0,0.51712]
[1721752545846,0.00849,66437.0,66436.0,0.15052]
[1721752546061,0.00849,66437.0,66436.0,0.95187391]
[1721752546282,0.00849,66437.0,66436.0,1.25291491]
[1721752546720,0.00849,66437.0,66436.0,1.66541491]
[1721752546938,0.00849,66437.0,66436.0,3.14515591]
[1721752547149,0.002,66449.0,66439.0,1.203598]
[1721752547367,0.002,66449.0,66439.0,1.65164591]
[1721752547795,0.002,66449.0,66439.0,1.75127371]
[1721752548092,0.002,66449.0,66439.0,2.96100171]
[1721752548276,1e-08,66440.0,66439.0,3.25600171]
[1721752548437,1e-08,66440.0,66439.0,3.40296436]
[1721752548813,1e-08,66440.0,66439.0,2.05693636]
[1721752549217,1e-08,66440.0,66439.0,1.89823636]
[1721752549625,1e-08,66440.0,66439.0,1.79860856]
[1721752549993,1e-08,66440.0,66439.0,1.74860856]
[1721752550324,1e-08,66440.0,66439.0,1.44758056]
[1721752550905,1e-08,66440.0,66439.0,1.34758056]
[1721752551115,0.00037221,66440.0,66439.0,0.89958991]
[1721752551286,0.00037221,66440.0,66439.0,0.14701991]
[1721752551463,0.00037221,66440.0,66439.0,0.59856191]
[1721752551464,0.00434013,66440.0,66439.0,0.59856191]
[1721752551670,0.00037221,66440.0,66439.0,0.59856191]
[1721752551876,1e-08,66440.0,66439.0,1.2607535]
[1721752552993,1e-08,66440.0,66439.0,0.29753391]
[1721752552994,0.00037221,66440.0,66439.0,0.29753391]
[1721752553202,0.00037221,66440.0,66439.0,0.59856191]
[1721752553941,1e-08,66440.0,66439.0,1.20061791]
[1721752555323,0.00037221,66440.0,66439.0,0.59856191]
[1721752555535,0.00037221,66440.0,66439.0,0.150514]
[1721752555771,0.00037221,66440.0,66439.0,0.451542]
[1721752555950,0.00432827,66440.0,66439.0,0.75257]
[1721752556155,0.00037221,66440.0,66439.0,0.75257]
[1721752557091,0.00037221,66440.0,66439.0,0.85911139]
[1721752557299,0.00037221,66440.0,66439.0,0.150514]
[1721752557498,0.0003722,66439.0,66438.0,0.002794]
[1721752557711,0.0003722,66436.0,66435.0,0.002794]
[1721752557921,0.0003722,66436.0,66435.0,0.153317]
[1721752558169,0.0003722,66436.0,66435.0,0.30027965]
[1721752558322,0.00432625,66436.0,66435.0,0.29748565]
[1721752558522,0.0003722,66436.0,66435.0,0.14696265]
[1721752558751,0.0003722,66436.0,66435.0,0.89957765]
[1721752558928,0.0003722,66436.0,66435.0,0.29748565]
[1721752559300,0.0003722,66436.0,66435.0,0.59853165]
[1721752559656,0.0003722,66436.0,66435.0,0.29748565]
[1721752560188,0.15051201,66440.0,66433.0,0.815155]
[1721752560189,0.0003722,66434.0,66433.0,0.815155]
[1721752560321,0.0003722,66434.0,66433.0,0.29754691]
[1721752560523,0.0003722,66434.0,66426.0,0.150543]
[1721752560524,0.0003722,66428.0,66426.0,0.150543]
[1721752560787,0.0003722,66428.0,66427.0,1.12717189]
[1721752561299,0.0003722,66429.0,66428.0,0.150538]
[1721752561501,0.0003722,66429.0,66428.0,0.451615]
[1721752561879,0.0003722,66434.0,66432.0,0.301059]
[1721752562113,0.0003722,66434.0,66433.0,0.451582]
[1721752562807,0.15051201,66440.0,66433.0,0.14701991]
[1721752562808,0.0003722,66439.0,66433.0,0.14701991]
[1721752563030,1e-08,66440.0,66439.0,0.75257]
[1721752563235,1e-08,66440.0,66439.0,1.20061791]
[1721752564172,1e-08,66440.0,66439.0,2.37164591]
[1721752565493,1e-08,66440.0,66439.0,2.07061791]
[1721752565691,1e-08,66440.0,66439.0,2.21758056]
[1721752566135,1e-08,66440.0,66439.0,2.51860856]
[1721752567053,1e-08,66440.0,66439.0,2.5278668]
[1721752567469,1e-08,66440.0,66439.0,2.5778668]
[1721752567801,1e-08,66440.0,66439.0,2.5278668]
[1721752568004,1e-08,66440.0,66439.0,1.3568388]
[1721752568230,1e-08,66440.0,66439.0,1.20987615]
[1721752569537,0.00037221,66440.0,66431.0,0.2685]
[1721752569743,0.00037221,66440.0,66432.0,0.14701991]
[1721752569744,0.0003722,66433.0,66432.0,0.14701991]
[1721752570106,0.0003722,66433.0,66432.0,0.59860791]
[1721752570321,0.0003722,66433.0,66432.0,0.89966691]
[1721752570488,0.0003722,66433.0,66432.0,0.59860791]
[1721752570715,0.0003722,66433.0,66432.0,1.0197423]
[1721752571344,0.0003722,66433.0,66432.0,0.59860791]
[1721752571939,0.0003722,66431.0,66420.0,0.2685]
[1721752572159,0.0003722,66431.0,66414.0,0.0634]
[1721752572160,0.07386162,66421.0,66414.0,0.0634]
[1721752572368,0.0003722,66420.0,66419.0,0.451677]
[1721752572634,0.0003722,66420.0,66419.0,0.150559]
[1721752572842,0.0003722,66418.0,66417.0,0.150563]
[1721752573089,0.0003722,66414.0,66411.0,0.301153]
[1721752573409,0.0003722,66414.0,66413.0,0.76175665]
[1721752573615,0.0003722,66414.0,66413.0,0.89988191]
[1721752574175,0.0003722,66414.0,66413.0,0.59873691]
[1721752574372,0.0003722,66414.0,66413.0,0.89988191]
[1721752574638,0.0003722,66414.0,66411.0,0.00926867]
[1721752574831,0.0003722,66404.0,66403.0,0.150595]
[1721752575034,0.0003722,66404.0,66403.0,0.29761491]
[1721752575272,0.0003722,66404.0,66403.0,0.59880591]
[1721752575442,0.0003722,66404.0,66400.0,0.002]
[1721752575443,0.1509722,66401.0,66400.0,0.002]
[1721752575633,0.150598,66402.0,66400.0,0.14901991]
[1721752575823,0.1506,66401.0,66400.0,0.002]
[1721752576032,0.4518,66401.0,66400.0,0.002]
[1721752576228,0.753,66401.0,66400.0,0.002]
[1721752576442,0.8183,66401.0,66400.0,0.002]
[1721752576784,1.2183,66401.0,66400.0,0.002]
[1721752577017,1.50528344,66401.0,66400.0,1.2e-07]
[1721752577239,1.70528344,66401.0,66400.0,1.2e-07]
[1721752578320,0.150652,66378.0,66377.0,0.000924]
[1721752578453,0.204948,66380.0,66377.0,0.000924]